{"text_format":"1","workbook":"xlsx","n_sheets":3,"sheets":["INSTRUÇÕES","Inquérito de Caracterização","--"],"not_rendered":{"charts":0,"images":4,"macros":1,"external_links":0,"defined_names":0,"comments":0,"pivot_tables":0},"unopened":[],"bounds":{"document_bytes":16777216,"sheet_cells":100000,"rows_first":2000,"rows_last":500,"rows_between":2000,"halvings":0,"cell_chars":16384,"cell_head_chars":4096},"cells_cut":0,"cells_raw":0,"read":"whole","date_system":"1900"}

{"sheet":"INSTRUÇÕES","index":0,"n_rows":20,"n_cols":4,"rows_kept":20,"cut":false,"hidden":false,"merged":[[19,1,19,4],[0,1,0,7],[1,1,1,7],[2,1,2,7],[12,1,12,7],[4,1,4,7],[3,1,3,7],[5,1,5,7],[9,3,9,7],[7,3,8,7],[13,1,14,7],[15,1,15,7],[16,1,16,7],[17,1,17,7],[10,1,11,7]]}
[null,"Colégio de Pediatria da Ordem dos Médicos"]
[null,"Inquérito de Caracterização dos Serviços de Pediatria para atribuição de idoneidade formativa"]
[null,2021]
[null,"Caro(a) colega"]
[null,"Este ano enviamos um novo formato de ficheiro para recolha dos dados de caracterização dos Serviços de Pediatria para atribuição de Idoneidade Formativa. Antes de iniciar o preenchimento, por favor leia todas as instruções desta página. "]
[null,"Só serão analisados os inquéritos enviados no corrente formato, não sendo aceites respostas em outros formatos, nomeadamente os utilizados em anos anteriores."]
[null,"Para o  preenchimento do mesmo apenas terá que adicionar a informação solicitada em dois tipos de células que mudam de cor assim que preenchidas:"]
[null,"Células de cor LARANJA",null,"Escolher opção da lista disponível. Quando selecionar a célula, surgirá à direita um botão com um triangulo preto, que ao \"clicar\" abrirá o menu de escolha das opções."]
[]
[null,"Células de cor CINZENTA",null,"Introduzir informação numérica ou texto solicitada"]
[null,"Só deve introduzir a informação relevante. Quando não houver informação para o item pretendido, deve deixar a célula em branco, sem dados introduzidos. Os dados estatísticos solicitados dizem respeito aos dois últimos anos de atividade assistencial/científica. Caso não consiga obter os dados para o total do ano indique na célula respetiva o valor apurado e em notas indique o período a que se referem os dados introduzidos."]
[]
[null,"Por razões de segurança e análise dos dados enviados, deverão ser enviados dois ficheiros, um em formato PDF (ACROBAT) e outro em formato XLS ou XLSX (EXCEL)."]
[null,"Antes de iniciar o preenchimento deverá Ativar o Conteúdo (barra amarela em cima). Em algumas versões de Excel pode ser necessário activar os Macros (surgirá informação na barra acima; selecionar opções e \"habilitar o conteúdo\"). Isso é essencial para que o preenchimento decorra normalmente."]
[]
[null,"DEVERÁ GRAVAR ESTE FICHEIRO NO AMBIENTE DE TRABALHO com o nome do seu hospital após o título atual (ex: Inquérito de avaliação idoneidade_CHSJoão) antes de iniciar o preenchimento do mesmo. No final do preenchimento clique no ícone com o desenho de uma disquete. Será automaticamente criado um ficheiro PDF no Ambiente de Trabalho do seu computador com o mesmo nome."]
[null,"Após o preenchimento, os 2 ficheiros do inquérito (pdf e xls) e respectivos anexos, devem ser enviados via Internato Médico do seu hospital para o CRIM respetivo, como vinha sendo hábito nos anos anteriores. Por segurança sugerimos que peça confirmação de recepção ou \"recibo eletrónico\" de entrega da mensagem."]
[null,"Ao enviar o PDF (ACROBAT) gerado para o email (Internato Médico do Hospital e/ou CRIM), é considerado que a resposta ao inquérito se encontra validada pelo Diretor do Serviço na data e hora inscrita no ficheiro."]
[]
[null,"Clique aqui para iniciar o preenchimento"]

{"sheet":"Inquérito de Caracterização","index":1,"n_rows":210,"n_cols":18,"rows_kept":210,"cut":false,"hidden":false,"merged":[[80,3,80,6],[127,1,127,8],[0,1,0,8],[1,1,1,8],[2,1,2,8],[32,1,32,7],[72,1,72,2],[43,1,43,8],[34,1,34,8],[71,1,71,8],[36,4,40,6],[25,2,25,6],[52,2,52,6],[3,1,3,7],[16,2,16,6],[44,2,45,2],[79,1,79,2],[44,3,45,3],[44,4,44,6],[4,7,4,8],[10,2,10,8],[11,2,11,8],[12,2,12,8],[15,1,15,8],[79,3,79,8],[185,5,185,7],[89,3,89,8],[132,1,132,8],[138,3,138,4],[84,1,84,2],[114,1,114,8],[121,1,121,8],[84,3,84,8],[113,1,113,8],[105,1,106,1],[98,3,98,6],[137,1,137,8],[100,2,100,6],[108,2,108,3],[97,3,97,6],[91,1,91,8],[139,3,140,3],[139,4,140,4],[139,5,140,5],[139,6,140,6],[138,5,138,6],[93,3,93,6],[94,3,94,6],[95,3,95,6],[96,3,96,6],[104,1,104,8],[101,2,102,6],[138,7,139,8],[166,1,166,8],[188,2,188,4],[189,2,189,4],[175,2,175,4],[176,2,176,4],[178,2,178,4],[179,2,179,4],[177,2,177,4],[187,5,187,7],[188,5,188,7],[189,5,189,7],[186,5,186,7],[174,2,174,4],[185,2,185,4],[187,2,187,4],[186,2,186,4],[202,1,202,8],[203,1,203,8],[205,1,205,8],[204,1,204,8],[190,5,190,7],[190,2,190,4],[197,1,197,8],[193,1,193,8],[194,1,194,8]]}
[null,"Colégio de Pediatria da Ordem dos Médicos"]
[null,"Inquérito de Caracterização dos Serviços de Pediatria para atribuição de idoneidade formativa"]
[null,{"$f":"\"Ano 2021\"","v":"Ano 2021"}]
[null,"Preencher apenas as células côr de LARANJA (opções) e CINZENTA (números/texto)"]
[null,null,null,null,null,null,null,{"$f":"NOW()","v":"2019-12-16T11:14:38.780"}]
[null,"Região de Saúde"]
[]
[null,"Centro Hospitalar / Unidade Local de Saúde",{"$f":"IF($B$9=\"outro\",\"Por favor introduza na celula abaixo o nome do seu hospital\",\"\")","v":""}]
[null,null,null,null,null,null,null,{"$f":"IF(B9=\"\",\"\",VLOOKUP(B9,'--'!G3:H42,2,))","v":""}]
[null,"Serviço de Pediatria"]
[null,"Diretor(a) do Serviço"]
[null,"Correio eletrónico/email"]
[null,"Telefone"]
[]
[]
[null,"1. Médicos colocados no Serviço e com trabalho efetivo na Instituição"]
[null,{"$f":"\"Dados relativos a 2 de dezembro de 2019\"","v":"Dados relativos a 2 de dezembro de 2019"},"Horário semanal"]
[null,null,"42 h","40 h","35 h","20 h","Outro",null,"Total",null,null,null,"S/N","Triagem","Unidade","na Insituição onde fazem o estágio opcional","Apoio Perinatal","semanal"]
[null,"Nº Assistentes Hospitalares Graduados Sénior (AHGS) na Pediatria *",null,null,null,null,null,null,{"$f":"SUM(C19:G19)","v":0},null,null,null,"Sim","Não",null,"no seu Hospital de acolhimento (sempre)","Apoio Perinatal Diferenciado","bissemanal"]
[null,"Nº Assistentes Hospitalares Graduados (AHG) na Pediatria *",null,null,null,null,null,null,{"$f":"SUM(C20:G20)","v":0},null,null,null,"Não","Manchester","Não","no seu Hospital de acolhimento (se distância <50km)","Apoio Perinatal Altamente Diferenciado","quinzenal"]
[null,"Nº Assistentes Hospitalares (AH) na Pediatria *",null,null,null,null,null,null,{"$f":"SUM(C21:G21)","v":0},null,null,null,null,"Canadiana","Intensivos",null,null,"mensal"]
[null,"Nº Especialistas em Contrato de Prestação na Serviços (CPS) *",null,null,null,null,null,null,{"$f":"SUM(C22:G22)","v":0},null,null,null,null,"Outra","Intermedios",null,null,"outra"]
[null,"Total",{"$f":"SUM(C19:C22)","v":0},{"$f":"SUM(D19:D22)","v":0},0,0,0,null,{"$f":"SUM(I19:I22)","v":0}]
[null,"* Não incluir os profissionais alocados à Perinatologia/Neonatologia/UCIN"]
[]
[null,{"$f":"\"Dados relativos a 2 de dezembro de 2019\"","v":"Dados relativos a 2 de dezembro de 2019"},"Horário semanal"]
[null,null,"42 h","40 h","35 h","20 h","Outro",null,"Total"]
[null,"Nº AHGS alocados à Perinatologia/Neonatologia/UCIN",null,null,null,null,null,null,{"$f":"SUM(C28:G28)","v":0}]
[null,"Nº AHG alocados à Perinatologia/Neonatologia/UCIN",null,null,null,null,null,null,{"$f":"SUM(C29:G29)","v":0}]
[null,"Nº AH alocados à Perinatologia/Neonatologia/UCIN",null,null,null,null,null,null,{"$f":"SUM(C30:G30)","v":0}]
[null,"Nº Especialistas em CPS alocados à Perinatologia/Neonatologia/UCIN",null,null,null,null,null,null,{"$f":"SUM(C31:G31)","v":0}]
[null,"Total",{"$f":"SUM(C28:C31)","v":0},{"$f":"SUM(D28:D31)","v":0},0,0,0,null,{"$f":"SUM(I28:I31)","v":0}]
[]
[]
[null,"1.1 Internos de Formação Especifica em Pediatria (IFEP)"]
[null,2019,"Da própria instituição"]
[null,"1º ano",null,null,"Contabilizar todos os internos do Serviço a 31 de dezembro 2019, mesmo os que estão a fazer estágios noutras instituições."]
[null,"2º ano"]
[null,"3º ano"]
[null,"4º ano"]
[null,"5º ano"]
[null,"Total",{"$f":"SUM(C37:C41)","v":0}]
[]
[null,"2. Estágios pretendidos e idoneidades para IFEP"]
[null,null,{"$f":"\"Número máximo de internos em Simultâneo por Estágio que tiveram em 2019\"","v":"Número máximo de internos em Simultâneo por Estágio que tiveram em 2019"},{"$f":"\"Número máximo de internos em Simultâneo por Estágio pretendidos para 2021\"","v":"Número máximo de internos em Simultâneo por Estágio pretendidos para 2021"},"Caracterização da Área"]
[null,null,null,null,"Número de Médicos com Dedicação à Área (com mínimo de 20h dedicadas/especialista)","Número de Médicos com Sub-especialidade/Ciclo de Estudos Especiais/Equivalência a CEE na Área","Número de Horas de Consulta Semanal da Área",null,"Variação"]
[null,"Pediatria Geral 1 da própria instituição (13m)",null,null,null,null,null,null,{"$f":"D47-C47","v":0}]
[null,"Pediatria Geral 2 da própria instituição (12m)",null,null,null,null,null,null,0]
[null,"Pediatria Geral 2 de outra instituição (12m)",null,null,null,null,null,null,0]
[null,"Bloco de Partos e Cuidados Perinatais (3 m)",null,null,null,null,null,null,0]
[null,"Cuidados Intensivos Neonatais (3m)",null,null,null,null,null,null,0]
[null,"Cuidados Intensivos Pediatricos (3m)",null,null,null,null,null,null,0]
[]
[null,"Alergologia Pediátrica (3m)",null,null,null,null,null,null,0]
[null,"Doenças Hereditárias do Metabolismo (3m)",null,null,null,null,null,null,0]
[null,"Endocrinologia Pediátrica (3m)",null,null,null,null,null,null,0]
[null,"Gastrenterologia e Hepatologia Pediátrica (3m)",null,null,null,null,null,null,0]
[null,"Hematologia Pediátrica (3m)",null,null,null,null,null,null,0]
[null,"Medicina do Adolescente (3m)",null,null,null,null,null,null,0]
[null,"Nefrologia Pediátrica (3m)",null,null,null,null,null,null,0]
[null,"Neurodesenvolvimento (3m)",null,null,null,null,null,null,0]
[null,"Neuropediatria (3m)",null,null,null,null,null,null,0]
[null,"Oncologia Pediátrica (3m)",null,null,null,null,null,null,0]
[null,"Pneumologia Pediátrica e Sono (3m)",null,null,null,null,null,null,0]
[null,null,null,null,null,null,null,null,{"$f":"D65-C65","v":0}]
[null,null,null,null,null,null,null,null,0]
[null,null,null,null,null,null,null,null,0]
[null,"Cirurgia Pediátrica (1m)"]
[null,"Ortopedia Pediatrica (1m)"]
[]
[]
[null,"3. Instalações e apoios complementares"]
[null,"3.1 Internamento",null,"3.4 Disponibilidade de MCDTs",null,null,null,null,"7x365 d ?"]
[null,"Número total de camas de internamento de Pediatria Médica",null,null,null,null,"Patologia clínica"]
[null,"Número de camas em quartos individuais",null,null,null,null,"Imunohemoterapia"]
[null,"Quarto para isolamento",null,null,null,null,"Radiologia convencional"]
[null,"Unidade de adolescentes individualizada",null,null,null,null,"Ecografia"]
[null,"Número de camas para adolescentes",null,null,null,null,"Acesso a TAC"]
[null,"Salas de atividades lúdicas separadas por grupos etários",null,null,null,null,"Acesso a RMN"]
[null,"3.2 Consulta Externa",null,"3.5 Hospital de Dia"]
[null,"Idade limite dos doentes admitidos na Consulta Pediatrica",null,"O Serviço tem Hospital de Dia pediátrico"]
[null,"Área especifica para a Pediatria"]
[null,"Sala de espera exclusiva da Pediatria"]
[null,"Sala de preparação de consulta (enfermagem)"]
[null,"3.3 Urgência"]
[null,"Urgência Pediátrica individualizada dos adultos"]
[null,"Idade limite dos doentes admitidos na Urgência Pediátrica"]
[null,"Sala de espera exclusiva da Pediatria"]
[null,"UICD/SO"]
[null,"Número de camas UICD/SO"]
[]
[null,"4. Serviço de Urgência Pediatria Geral - recursos médicos"]
[null,null,null,"Obs"]
[null,"Total de horas da equipa tipo de urgência por dia"]
[null,"Horas em presença física (PF) por dia"]
[null,"Horas em prevenção por dia"]
[null,"Horas da equipa tipo asseguradas exclusivamente por Pediatras"]
[null,"Horas da equipa tipo asseguradas por Internos"]
[null,"Número de Pediatras (especialistas em PF) durante o dia (8:00-20:00)"]
[null,"Número de Pediatras (especialistas PF) durante a noite (20:00-8:00)"]
[null,"Os Internos da sua Instituição, a fazer estágios opcionais, por regra, cumprem as horas de urgência"]
[null,"Observações / comentários"]
[]
[]
[null,"5. Neonatologia"]
[null,null,"Intensivos","Intermédios"]
[null,null,null,null,"(Sim/Não)"]
[null,"Nº de camas"]
[null,"Unid. de Neonat. integra a Rede de Referenciação Perinatal como H."]
[null,"Equipa Médica individualizada exclusiva para apoio neonatal nas 24 h"]
[null,"Pediatra em presença física nas 24h, com competência em reanimação e estabilização de Recém-Nascidos"]
[null,"Pediatra / Neonatologista em todos os partos"]
[]
[null,"6. Indicadores de movimento assistencial"]
[null,"6.1 Internamento de Pediatria Médica"]
[null,null,2018,null,2019,null,null,null,"Variação"]
[null,"Número total de internamentos",null,null,null,null,null,null,{"$f":"E117-C117","v":0}]
[null,"Taxa de ocupação (%)",null,null,null,null,null,null,{"$f":"E118-C118","v":0}]
[null,"Demora média (dias)",null,null,null,null,null,null,0]
[null,"Número de internamentos de adolescentes (10 a 18 anos)",null,null,null,null,null,null,0]
[]
[null,"6.2 Urgência Pediátrica"]
[null,null,2018,null,2019,null,null,null,"Variação"]
[null,"Nº total de admissões na Urgência Pediátrica",null,null,null,null,null,null,{"$f":"E124-C124","v":0}]
[null,"% internados",null,null,null,null,null,null,{"$f":"E125-C125","v":0}]
[null,"Nº total de admissões de adolescentes na UP (10 a 18 anos)",null,{"$f":"C126/C124*100","v":{"$error":"#DIV/0!"}},null,{"$f":"E126/E124*100","v":{"$error":"#DIV/0!"}},null,null,0]
[]
[null,"6.3 Neonatologia e Cuidados Intensivos Neonatais"]
[null,null,2018,null,2019]
[null,"Número total de Partos",null,null,null,null,null,null,{"$f":"E130-C130","v":0}]
[null,"% cesarianas",null,null,null,null,null,null,{"$f":"E131-C131","v":0}]
[]
[null,"6.4 UICD/SO"]
[null,null,2018,null,2019,null,null,null,"Variação"]
[null,"Número total de internamentos",null,null,null,null,null,null,{"$f":"E135-C135","v":0}]
[null,"Taxa de ocupação (%)",null,null,null,null,null,null,0]
[]
[null,"6.7 Consultas Externas"]
[null,null,null,2018,null,2019,null,"% de primeiras"]
[null,null,null,"Nº Primeiras","Nº Total","Nº Primeiras","Nº Total"]
[null,null,null,null,null,null,null,2018,2019]
[null,"Consulta de Pediatria Geral",null,null,null,null,null,{"$f":"D142/E142*100","v":{"$error":"#DIV/0!"}},{"$f":"F142/G142*100","v":{"$error":"#DIV/0!"}}]
[null,"Consultas individualizadas","(Sim/Não)"]
[null,"Alergologia Pediátrica",null,null,null,null,null,{"$f":"D144/E144*100","v":{"$error":"#DIV/0!"}},{"$f":"F144/G144*100","v":{"$error":"#DIV/0!"}}]
[null,"Doenças Hereditárias do Metabolismo",null,null,null,null,null,{"$f":"D145/E145*100","v":{"$error":"#DIV/0!"}},{"$f":"F145/G145*100","v":{"$error":"#DIV/0!"}}]
[null,"Endocrinologia Pediátrica",null,null,null,null,null,{"$error":"#DIV/0!"},{"$error":"#DIV/0!"}]
[null,"Gastroenterologia Pediátrica",null,null,null,null,null,{"$error":"#DIV/0!"},{"$error":"#DIV/0!"}]
[null,"Hematologia Pediátrica",null,null,null,null,null,{"$error":"#DIV/0!"},{"$error":"#DIV/0!"}]
[null,"Infecciologia Pediátrica",null,null,null,null,null,{"$error":"#DIV/0!"},{"$error":"#DIV/0!"}]
[null,"Medicina do Adolescente",null,null,null,null,null,{"$error":"#DIV/0!"},{"$error":"#DIV/0!"}]
[null,"Nefrologia Pediátrica",null,null,null,null,null,{"$error":"#DIV/0!"},{"$error":"#DIV/0!"}]
[null,"Neonatologia",null,null,null,null,null,{"$error":"#DIV/0!"},{"$error":"#DIV/0!"}]
[null,"Neurodesenvolvimento",null,null,null,null,null,{"$error":"#DIV/0!"},{"$error":"#DIV/0!"}]
[null,"Neuropediatria",null,null,null,null,null,{"$error":"#DIV/0!"},{"$error":"#DIV/0!"}]
[null,"Oncologia Pediátrica",null,null,null,null,null,{"$error":"#DIV/0!"},{"$error":"#DIV/0!"}]
[null,"Pneumologia Pediátrica e Sono",null,null,null,null,null,{"$error":"#DIV/0!"},{"$error":"#DIV/0!"}]
[null,null,null,null,null,null,null,{"$error":"#DIV/0!"},{"$error":"#DIV/0!"}]
[null,null,null,null,null,null,null,{"$error":"#DIV/0!"},{"$error":"#DIV/0!"}]
[null,null,null,null,null,null,null,{"$error":"#DIV/0!"},{"$error":"#DIV/0!"}]
[null,"Cardiologia Pediátrica",null,null,null,null,null,{"$error":"#DIV/0!"},{"$error":"#DIV/0!"}]
[null,"Dermatologia Pediátrica",null,null,null,null,null,{"$error":"#DIV/0!"},{"$error":"#DIV/0!"}]
[null,"Genética",null,null,null,null,null,{"$error":"#DIV/0!"},{"$error":"#DIV/0!"}]
[null,"Oftalmologia Pediátrica",null,null,null,null,null,{"$error":"#DIV/0!"},{"$error":"#DIV/0!"}]
[null,"Otorrinolaringologia Pediátrica",null,null,null,null,null,{"$error":"#DIV/0!"},{"$error":"#DIV/0!"}]
[null,"Pedopsiquiatria",null,null,null,null,null,{"$error":"#DIV/0!"},{"$error":"#DIV/0!"}]
[null,"Indicar outras consultas individualizadas nas linhas disponiveis, se existirem"]
[null,"7. ATIVIDADE CIENTÍFICA"]
[null,"Acesso a revistas online / Revista em papel"]
[]
[null,"O Serviço organiza reuniões científicas internas regulares"]
[null,"Periodicidade das Reuniões Serviço",null,"Anexar programa"]
[]
[null,null,2017,2018,2019,null,null,"total"]
[null,"Artigos científicos publicados cujo primeiro autor integra o Serviço",null,null,null,"(excluindo resumos)",null,{"$f":"C174+D174+E174","v":0}]
[null,"5 Artigos mais significativos (Referência Bibliográfica)","DOI",null,null,"Índice Impacto"]
[]
[]
[]
[]
[]
[]
[null,null,2017,2018,2019,null,null,"total"]
[null,"Comunicações orais e/ou posteres apresentados em Reuniões relevantes fora do Serviço cujo primeiro autor integra o Serviço ",null,null,null,null,null,{"$f":"C183+D183+E183","v":0}]
[]
[null,"Projetos de investigação em curso envolvendo profissionais do Serviço"]
[null,"Título (mais significativos)","Coordenador",null,null,"Entidade promotora"]
[]
[]
[]
[]
[]
[]
[]
[null,"8. Observações / Comentários"]
[]
[]
[]
[null,"Clique aqui para finalizar e criar o ficheiro PDF (este fica gravado no Ambiente de Trabalho)"]
[]
[]
[]
[]
[null,"Envie o inquérito (nos formatos Excel e PDF) assim como os respetivos anexos para:"]
[null,"Direção do Internato Médico do seu Hospital / CRIM"]
[null,"e para"]
[null," antonio.pinheiro@nortemedico.pt (Secretariado do Colégio de Pediatria da Ordem dos Médicos)"]
[]
[null,"Ao enviar enviar o PDF (ACROBAT) gerado, para o email, é considerado que a resposta ao inquérito se encontra validada pelo Diretor do Serviço nesta hora e data."]
[]
[null,{"$f":"\" | \"&'--'!B33&\", às \"&'--'!B30&\" horas e \"&'--'!B31&\" minutos, de \"&'--'!B29&\" de \"&'--'!B34&\" de \"&'--'!B27&\" |\"","v":" | Segunda-feira, às 11 horas e 14 minutos, de 16 de dezembro de 2019 |"}]

{"sheet":"--","index":2,"n_rows":269,"n_cols":10,"rows_kept":269,"cut":false,"hidden":false,"merged":[[17,2,23,4]]}
[]
[null,"Região Saúde",null,"S/N",null,null,"Hospital"]
[null,"ARS Norte",null,"Sim",null,null,"CH Baixo Vouga ","Aveiro",null,"Esta folha, foi propositadamente deixada em branco."]
[null,"ARS Centro",null,"Não",null,null,"CH Barreiro-Montijo","Barreiro"]
[null,"ARS Lisboa e Vale do Tejo",null,null,null,null,"CH de Setúbal","Setúbal",null,"Não é para ser preenchida."]
[null,"ARS Alentejo",null,"Sim, em horário exclusivo",null,null,"CH de Trás-os-Montes e Alto Douro","Vila Real"]
[null,"ARS Algarve",null,"Sim, dando apoio apenas",null,null,"CH de Vila Nova de Gaia/Espinho","VN Gaia"]
[null,"SRS RA Madeira",null,"Não",null,null,"CH do Médio Ave","VN Famalicão"]
[null,"SRS RA Açores",null,null,null,null,"CH do Médio Tejo","Torres Novas / Abrantes"]
[null,null,null,"Horário parcial",null,null,"CH do Oeste","Caldas da Rainha"]
[null,"Sistema Triagem",null,"24 h",null,null,"CH Entre Douro e Vouga","Feira"]
[null,"Não",null,"Não disponível",null,null,"CH Leiria","Leiria"]
[null,"Manchester",null,null,null,null,"CH Lisboa Ocidental","HS F Xavier"]
[null,"Canadiano",null,null,null,null,"CH Póvoa Varzim-Vila do Conde","Póvoa de Varzim"]
[null,"Outro",null,null,null,null,"CH Tâmega e Sousa","Penafiel"]
[null,null,null,"Ano do inquerito",null,null,"CH Tondela Viseu","Viseu"]
[null,null,null,2020,null,null,"CH Universitário Cova da Beira","Covilhã"]
[null,null,"Alterar esta célula, altera a data do inquerito e todas as opções relacionadas com a data. É a célula a alterar quando se fizer um inquerito para um novo ano",null,null,null,"CH Universitário de Coimbra","HP Coimbra"]
[null,null,null,null,null,null,"CH Universitário de Lisboa Central","HD Estefânia"]
[null,null,null,null,null,null,"CH Universitário de Lisboa Norte","HS Maria"]
[null,null,null,null,null,null,"CH Universitário de S. João","Porto"]
[null,null,null,null,null,null,"CH Universitário do Algarve","Faro"]
[null,null,null,null,null,null,"CH Universitário do Porto","CMIN"]
[null,null,null,null,null,null,"Hospital Beatriz Ângelo","Loures"]
[null,null,null,null,null,null,"Hospital Central do Funchal","Funchal"]
[null,{"$f":"NOW()","v":"2019-12-16T11:14:38.780"},"Agora",null,null,null,"Hospital CUF Descobertas","Lisboa"]
[null,{"$f":"YEAR(B26)","v":2019},"Ano",null,null,null,"Hospital da Senhora da Oliveira Guimarães","Guimarães"]
[null,{"$f":"MONTH(B26)","v":12},"Mês",null,null,null,"Hospital de Braga","Braga"]
[null,{"$f":"DAY(B26)","v":16},"Dia",null,null,null,"Hospital de Cascais Dr José Almeida","Cascais"]
[null,{"$f":"HOUR(B26)","v":11},"Hora",null,null,null,"Hospital de Santarém","Santarém"]
[null,{"$f":"MINUTE(B26)","v":14},"Minuto",null,null,null,"Hospital de Vila Franca de Xira","V F Xira"]
[null,{"$f":"WEEKDAY(B26)","v":2},"Dia da semana",null,null,null,"Hospital Distrital da Figueira da Foz","Figueira da Foz"]
[null,{"$f":"VLOOKUP(B32,B35:C41,2)","v":"Segunda-feira"},"Dia da semana",null,null,null,"Hospital Divino Espírito Santo – Ponta Delgada ","Ponta Delgada"]
[null,{"$f":"VLOOKUP(MONTH(B26),B43:C54,2)","v":"dezembro"},"Mês do ano",null,null,null,"Hospital Espírito Santo Évora","Évora"]
[null,1,"Domingo",null,null,null,"Hospital Garcia de Orta","Alamada"]
[null,2,"Segunda-feira",null,null,null,"Hospital Prof Dr Fernando Fonseca","Lisboa"]
[null,3,"Terça-feira",null,null,null,"ULS da Guarda","Guarda"]
[null,4,"Quarta-feira",null,null,null,"ULS de Castelo Branco","Castelo Branco"]
[null,5,"Quinta-feira",null,null,null,"ULS do Alto Minho","Viana do Castelo"]
[null,6,"Sexta-feira",null,null,null,"ULS do Baixo Alentejo","Beja"]
[null,7,"Sábado",null,null,null,"ULS Matosinhos","Matosinhos"]
[null,null,null,null,null,null,"Outro","<--<--"]
[null,1,"janeiro"]
[null,2,"fevereiro"]
[null,3,"março"]
[null,4,"abril"]
[null,5,"maio"]
[null,6,"junho"]
[null,7,"julho"]
[null,8,"agosto"]
[null,9,"setembro"]
[null,10,"outubro"]
[null,11,"novembro"]
[null,12,"dezembro"]
[]
[]
[]
[]
[]
[]
[]
[]
[]
[]
[]
[]
[]
[]
[]
[]
[]
[]
[]
[]
[]
[]
[]
[]
[]
[]
[]
[]
[]
[]
[]
[]
[]
[]
[]
[]
[]
[]
[]
[]
[]
[]
[]
[]
[]
[]
[]
[]
[]
[]
[]
[]
[]
[]
[]
[]
[]
[]
[]
[]
[]
[]
[]
[]
[]
[]
[]
[]
[]
[]
[]
[]
[]
[]
[]
[]
[]
[]
[]
[]
[]
[]
[]
[]
[]
[]
[]
[]
[]
[]
[]
[]
[]
[]
[]
[]
[]
[]
[]
[]
[]
[]
[]
[]
[]
[]
[]
[]
[]
[]
[]
[]
[]
[]
[]
[]
[]
[]
[]
[]
[]
[]
[]
[]
[]
[]
[]
[]
[]
[]
[]
[]
[]
[]
[]
[]
[]
[]
[]
[]
[]
[]
[]
[]
[]
[]
[]
[]
[]
[]
[]
[]
[]
[]
[]
[]
[]
[]
[]
[]
[]
[]
[]
[]
[]
[]
[]
[]
[]
[]
[]
[]
[]
[]
[]
[]
[]
[]
[]
[]
[]
[]
[]
[]
[]
[]
[]
[]
[]
[]
[]
[]
[]
[]
[]
[]
[]
[]
[]
[]
[]
[]
[]
[]
[]
[]
[]
[]
[]
[]
[]
[]
[]
[]
[null,{"$f":"'--'!B33&\", às \"","v":"Segunda-feira, às "}]